Cogmind - Beta 17 @@@ ROGUE MODE // 2026.08.06 @ 21:59:19 Player: Afro Result: Destroyed by Y-54 Guardian with Gatling Laser Performance ------------- Evolutions (0) 0 Regions Visited (3) 600 Robots Destroyed (35) 175 Value Destroyed (880) 880 Prototype IDs (0) 0 Alien Tech Used (0) 0 Bonus (0) 0 TOTAL SCORE: 1655 Bonus ------- None Cogmind --------- Core Integrity 0/250 Matter 64/300 Energy 200/200 System Corruption 1% Temperature Cool (61) Movement Rolling (120) Ox1 Location -7/Recycling Parts ------- > --- POWER (1) -------- Subdweller Power Source > --- PROPULSION (2) --- Subdweller Monowheel Subdweller Monowheel > --- UTILITY (2) ------ Scrap Shield > --- WEAPON (2) ------- Subdweller Machine Gun Barrage Gun > --- INVENTORY (5) ---- Subdweller Power Source Subdweller Power Source Subdweller Optics Subdweller Laser Subdweller Beam Cannon Peak State ------------ > --- POWER ------------ Subdweller Power Source > --- PROPULSION ------- Myomer Leg Subdweller Monowheel > --- UTILITY ---------- Large Storage Unit Core Shielding > --- WEAPON ----------- Battle Rifle Battle Cannon > --- INVENTORY -------- Ion Engine Subdweller Power Source Subdweller Power Source Subdweller Monowheel Cooling System Subdweller Optics Signal Interpreter Seismic Detector Phase Shifter Scrap Shield Subdweller Machine Gun Light Cannon Grenade Launcher Hammer [Rating: 19] Favorites ----------- Power Subdweller Power Source Engine Subdweller Power Source Propulsion Subdweller Monowheel Treads Light Treads Leg Myomer Leg Wheel Subdweller Monowheel Utility Large Storage Unit Device Seismic Detector Storage Large Storage Unit Protection Core Shielding Weapon Light Assault Rifle Energy Gun Medium Laser Energy Cannon Subdweller Beam Cannon Ballistic Gun Light Assault Rifle Ballistic Cannon Battle Cannon Launcher Grenade Launcher Special Weapon Mining Laser Impact Weapon Hammer Build | -11 -10 -10 -7 ------- Run | Yrd Mat Sub Rec Slots Evolved . | . . . . Power . | . . . . Propulsion . | . . . . Utility . | . . . . Weapon . | . . . . Parts Attached 38 | 3 13 20 2 Power 6 | . 3 2 1 Engine 6 | . 3 2 1 Core . | . . . . Reactor . | . . . . Propulsion 11 | 2 1 8 . Treads 4 | 2 1 1 . Leg 1 | . . 1 . Wheel 6 | . . 6 . Hover . | . . . . Flight . | . . . . Utility 6 | 1 3 1 1 Device 1 | 1 . . . Storage 2 | . 2 . . Processor . | . . . . Hackware . | . . . . Protection 3 | . 1 1 1 Artifact . | . . . . Weapon 15 | . 6 9 . Energy Gun . | . . . . Energy Cannon 1 | . . 1 . Ballistic Gun 9 | . 4 5 . Ballistic Cannon 2 | . 1 1 . Launcher 1 | . . 1 . Special Weapon 1 | . 1 . . Impact Weapon 1 | . . 1 . Slashing Weapon . | . . . . Piercing Weapon . | . . . . Special Melee Weapon . | . . . . Unidentified Prototypes . | . . . . Parts Lost 10 | . . 10 . Power 1 | . . 1 . Propulsion 5 | . . 5 . Utility . | . . . . Weapon 4 | . . 4 . Highest Loss Streak 3 | . . 3 . To Critical Strikes . | . . . . Average Backups 13 | 6 12 13 6 Power 2 | 1 1 3 2 Propulsion 1 | 4 2 1 . Utility 4 | . 2 5 1 Weapon 3 | 1 5 2 2 Tool/Special . | . . . . Unused Backups 32 | . 9 14 9 Power 7 | . 1 4 2 Propulsion 9 | . 4 5 . Utility 8 | . 2 1 5 Weapon 8 | . 2 4 2 Tool/Special . | . . . . Average Slot Usage (%) 98 | . 99 98 86 Engine 13 | . 13 13 14 Treads 9 | . 27 2 3 Leg 5 | . . 7 . Wheel 13 | . . 18 24 Device 2 | . 7 . . Storage 13 | . 14 14 2 Protection 11 | . 6 13 12 Ballistic Gun 15 | . 25 11 28 Ballistic Cannon 1 | . 1 2 . Launcher 3 | . . 5 . Impact Weapon 5 | . . 8 . Peak Build Rating 19 | 7 8 19 17 Average Rating 14 | 6 7 16 15 On Entrance 9 | 6 7 8 17 Avg Prop Armor Cover (%) 6 | . . 6 3 Naked Turns . | . . . . Heaviest Build 89 | 14 89 38 36 Greatest Support 40 | 40 40 40 40 Greatest Overweight (x) 10 | . 2 10 1 Average Overweight (x) . | . . . . Largest Inventory Capacity 25 | 8 25 15 15 Average Capacity 16 | 8 20 15 6 Most Carried 18 | 8 18 15 14 Average Carried 14 | 6 12 14 5 Final Capacity 15 | 8 15 15 5 Final Carried 15 | 8 15 14 5 Class Distribution -------------------- 68% | Mutant 29% | Scavenger-Mutant Dominant Class ---------------- Mutant | -10/Materials Mutant | -10/Subcaves Subdweller-Mutant | -7/Recycling Resources | -11 -10 -10 -7 ----------- Run | Yrd Mat Sub Rec Matter Collected 1368 | 233 294 841 . Remotely . | . . . . Salvage Created 1007 | 109 338 560 . Parts 78 | 4 26 48 . Haulers Intercepted 1 | . 1 . . Recyclers Shooed 2 | . 1 . 1 Parts Field Recycled . | . . . . Retrieved Matter . | . . . . Parts Self-Destructed 11 | . . 11 . Prevented . | . . . . Parts Restored . | . . . . Kills | -11 -10 -10 -7 ------- Run | Yrd Mat Sub Rec Combat Hostiles Destroyed 31 | . 10 21 . Melee 1 | . . 1 . Guns 19 | . 10 9 . Cannons 3 | . . 3 . AOE 6 | . . 6 . Classes Destroyed 8 | 2 4 2 . Tunneler 1 | 1 . . . Hauler 1 | . 1 . . Recycler 1 | 1 . . . Watcher 1 | . 1 . . Swarmer 13 | . 6 7 . Grunt 4 | . 4 . . Artisan 1 | . . 1 . Subdweller 14 | . . 14 . Best Kill Streak 5 | 2 3 5 . Combat Bots Only 5 | . 3 5 . Max Kills in Single Turn 3 | 1 1 3 . Gunslinging 1 | . . 1 . Exploded 3 | . . 3 . Melee 1 | . . 1 . Uniques/NPCs Destroyed . | . . . . Combat | -11 -10 -10 -7 -------- Run | Yrd Mat Sub Rec Hostile Shots Fired 266 | . 64 163 39 Missed 82 | . 19 42 21 Hits 184 | . 45 121 18 Projectile 184 | . 45 121 18 Critical Strikes 3 | . 2 1 . Damage Taken 2485 | . 430 1920 135 Core 254 | . 7 235 12 Absorbed by Shields . | . . . . Redirected to Shielding 24 | . . 24 . Core Remaining (%) 100 | 100 . . . Volleys Fired 144 | 3 54 81 6 Largest 2 | 2 2 2 2 Hottest 100 | 70 100 63 58 Shots Fired 230 | 6 104 108 12 Gun 170 | 6 99 53 12 Cannon 21 | . 1 20 . Launcher 35 | . . 35 . Special 4 | . 4 . . Kinetic 185 | 3 97 73 12 Thermal 10 | 3 7 . . Explosive 35 | . . 35 . Electromagnetic . | . . . . Robot Hit Streak 14 | 5 6 14 5 Robot Miss Streak 5 | . 5 2 4 Penetration Max . | . . . . Secondary Targets 2 | . 1 1 . Max Gunslinging Chain 1 | . 1 1 . Shots Hit Robots 139 | 5 50 77 7 Core Hits 59 | 4 24 28 3 Critical Kills . | . . . . Critical Parts Destroyed 3 | . 1 2 . Critical Strikes 4 | . 1 3 . Destroy 1 | . 1 . . Blast 1 | . . 1 . Smash 2 | . . 2 . Melee Attacks 71 | . . 71 . Impact 71 | . . 71 . Slashing . | . . . . Piercing . | . . . . Sneak Attacks 2 | . . 2 . Combat Hostiles . | . . . . Follow-up Attacks . | . . . . Damage Inflicted 2618 | 52 478 1961 127 Guns 1309 | 52 475 659 123 Cannons 344 | . . 344 . Explosions 414 | . . 414 . Melee 544 | . . 544 . Ramming 7 | . 3 . 4 Kinetic 1601 | 26 449 1003 123 Thermal 52 | 26 26 . . Explosive 414 | . . 414 . Electromagnetic . | . . . . Impact 544 | . . 544 . Slashing . | . . . . Piercing . | . . . . Highest Corruption 1 | . 1 1 1 Average Corruption 1 | . 1 1 1 Corruption Purged . | . . . . Corruption Blocked . | . . . . Effects 46 | . 3 43 . Message Errors 10 | . 1 9 . Matter Fused 11 | . 1 10 . Heat Flow Errors 7 | . . 7 . Energy Discharges 10 | . 1 9 . Parts Fused 1 | . . 1 . Data Loss (minor) 6 | . . 6 . Data Loss (major) 1 | . . 1 . Overload Shots . | . . . . Overflow Damage 112 | . . 112 . Projectiles . | . . . . Explosions 27 | . . 27 . Melee 85 | . . 85 . Knockbacks 4 | . . 4 . Impact 3 | . . 3 . Kinetic 1 | . . 1 . Secondary . | . . . . Self-Inflicted Damage 4 | . . 2 2 Shots 1 | . . 1 . Rammed 2 | . 1 . 1 Targets Rammed 2 | . 1 . 1 Kicked . | . . . . Crushed . | . . . . Highest Temperature 233 | 50 70 233 66 Average Temperature 42 | 26 18 82 31 Received Heat Transfer 513 | . 105 366 42 Siege Activations . | . . . . Martial Activations . | . . . . Shielding Activations . | . . . . Robots Disrupted . | . . . . Combat Hostiles . | . . . . Robots Corrupted 2 | . . 2 . Combat Hostiles 2 | . . 2 . Parts Fried 5 | . . 5 . Impact Corruptions 4 | . . 4 . Robots Melted . | . . . . Combat Hostiles . | . . . . Parts Melted . | . . . . Heat Transferred 148 | 74 74 . . Parts Sabotaged . | . . . . Parts Stolen . | . . . . Parts Stripped . | . . . . Power Chain Reactions . | . . . . Alert | -11 -10 -10 -7 ------- Run | Yrd Mat Sub Rec Maximum Alert Level . | . . . . Low Security (%) 100 | 100 100 . 100 Level 1 . | . . . . Level 2 . | . . . . Level 3 . | . . . . Level 4 . | . . . . Level 5 . | . . . . High Security . | . . . . Max Security . | . . . . Peak Influence 120 | 10 120 . 60 Initial 60 | . . . 60 Average 32 | 3 33 . 35 Influence Increases 568 | 10 363 195 . Destroy 0b10 Robot/C 340 | . 200 140 . Destroy 0b10 Robot/NC 20 | 10 10 . . Destroy Leader 54 | . 44 10 . Successful Hack 31 | . 31 . . Disable Machine 15 | . 15 . . Destroy Structure 3 | . 3 . . Lose Combat Pursuer 105 | . 60 45 . Influence Decreases 558 | 10 332 101 115 Entered New Map 80 | . . 15 65 Time Decay 478 | 10 332 86 50 Squads Dispatched 1 | . 1 . . Investigation . | . . . . Extermination . | . . . . Reinforcement 1 | . 1 . . Assault . | . . . . Garrison . | . . . . Intercept . | . . . . Searches Triggered . | . . . . Construction Impeded . | . . . . Haulers Reinforced . | . . . . Active Scanning Responses . | . . . . Cargo Convoy Interrupts . | . . . . Stealth | -11 -10 -10 -7 --------- Run | Yrd Mat Sub Rec Distress Signals 3 | . 3 . . Communications Jammed . | . . . . Distress Signals . | . . . . Times Spotted 53 | . 23 29 1 Peak Tracking Total 6 | . 5 6 1 Tactical Retreats 4 | . 2 2 . Traps | -11 -10 -10 -7 ------- Run | Yrd Mat Sub Rec Traps Triggered 3 | . 2 1 . Indirectly . | . . . . Trap Hack Attempts . | . . . . Triggered . | . . . . Disarmed . | . . . . Reprogrammed . | . . . . Reused . | . . . . Traps Extracted . | . . . . Installed . | . . . . Triggered . | . . . . Machines | -11 -10 -10 -7 ---------- Run | Yrd Mat Sub Rec Machines Disabled 2 | . 1 1 . Max in Single Turn 1 | . 1 1 . Machines Repaired . | . . . . Machines Dismantled . | . . . . Machines Sabotaged . | . . . . Overloaded Fab Kills . | . . . . Hacking | -11 -10 -10 -7 --------- Run | Yrd Mat Sub Rec Machines Accessed 7 | . 7 . . Terminals 6 | . 6 . . Fabricators . | . . . . Repair Stations . | . . . . Recycling Units 1 | . 1 . . Scanalyzers . | . . . . Garrison Access . | . . . . Total Hacks 19 | . 19 . . Successful 14 | . 14 . . Failed 4 | . 4 . . Catastrophic 1 | . 1 . . Database Lockouts 1 | . 1 . . Manual 20 | . 20 . . Terminals 17 | . 17 . . Fabricators . | . . . . Repair Stations . | . . . . Recycling Units 2 | . 2 . . Scanalyzers . | . . . . Garrison Access . | . . . . Terminal Hacks 1 | . 1 . . Robot Analysis 1 | . 1 . . Fabricator Hacks . | . . . . Repair Station Hacks . | . . . . Recycling Unit Hacks . | . . . . Scanalyzer . | . . . . Garrison Access Hacks . | . . . . Unauthorized Hacks 13 | . 13 . . Terminals 11 | . 11 . . Botnet 6 | . 6 . . Skim 5 | . 5 . . Fabricators . | . . . . Repair Stations . | . . . . Recycling Units 2 | . 2 . . Reject 1 | . 1 . . Mask 1 | . 1 . . Scanalyzers . | . . . . Garrison Access . | . . . . Data Cores Recovered . | . . . . Used . | . . . . Hacking Detections 5 | . 5 . . Full Trace Events . | . . . . Feedback Events . | . . . . Feedback Blocked . | . . . . Robot Schematics Acquired . | . . . . Robots Built . | . . . . Authchips . | . . . . Time . | . . . . Total Robot Build Rating . | . . . . Part Schematics Acquired . | . . . . Parts Built . | . . . . Authchips . | . . . . Time . | . . . . Total Part Build Rating . | . . . . Part Studies Acquired . | . . . . Parts Repaired . | . . . . Time . | . . . . Parts Recycled . | . . . . Recycled Matter . | . . . . Retrieved Matter . | . . . . Retrieved Components . | . . . . Parts Scanalyzed . | . . . . Part Schematics Acquired . | . . . . Parts Damaged . | . . . . Bothacking | -11 -10 -10 -7 ------------ Run | Yrd Mat Sub Rec Used RIF Installer . | . . . . Robots Hacked . | . . . . Non-combat . | . . . . Combat . | . . . . Robot Hacks Applied . | . . . . Relay Couplers Released . | . . . . Fabnet Peak Effective % . | . . . . Robots Rewired . | . . . . Allies Hacked . | . . . . Hacks Repelled . | . . . . Allies | -11 -10 -10 -7 -------- Run | Yrd Mat Sub Rec Total Allies . | . . . . Largest Group . | . . . . Highest-Rated Group . | . . . . Highest-Rated Ally . | . . . . Total Orders . | . . . . Ally Attacks . | . . . . Total Damage . | . . . . Kills . | . . . . Allies Corrupted . | . . . . Allies Melted . | . . . . Intel | -11 -10 -10 -7 ------- Run | Yrd Mat Sub Rec Active Infowar (turns) 976 | 20 956 . . Seismic 976 | 20 956 . . Robot Analysis Total 1 | . 1 . . Derelict Logs Recovered . | . . . . Drone Launches . | . . . . Drone Recoveries . | . . . . Exploration | -11 -10 -10 -7 ------------- Run | Yrd Mat Sub Rec Turns Passed 6599 | 44 1838 4602 115 Spaces Moved 3737 | 19 657 2985 76 Core 11 | . . 11 . Treads 805 | 19 657 129 . Legs 668 | . . 668 . Wheels 2253 | . . 2177 76 Hover . | . . . . Flight . | . . . . Fastest Speed 110 | 160 160 110 110 Average Speed 153 | 160 231 137 118 Slowest Speed 550 | 160 320 550 120 Overloaded Moves . | . . . . Propulsion Burnouts . | . . . . Robots Hopped . | . . . . Potential Cave-ins . | . . . . Cave-ins Triggered . | . . . . Exploration Rate (%) 44 | 4 95 65 13 Regions Visited 3 Branch Regions 2 Pre-discovered Areas 1 | . . 1 . Known Exits Taken . | . . . . Unknown Exits Taken 3 | 1 1 1 . Scrap Searched 5 | . . 5 . Spaces Dug 15 | . 3 12 . Terrain Destroyed 275 | . 3 272 . Melee 12 | . . 12 . Projectile 3 | . 3 . . AOE 260 | . . 260 . Terrain Rammed . | . . . . Walls Destroyed . | . . . . Machines Disabled . | . . . . Actions | -11 -10 -10 -7 --------- Run | Yrd Mat Sub Rec Total 4251 | 26 881 3249 95 Wait 144 | . 114 30 . Move 3734 | 18 656 2984 76 Hop . | . . . . Pick Up 48 | 2 20 22 4 Fast Attach 15 | 1 4 10 . Attach 12 | . 2 8 2 Detach . | . . . . Swap 32 | 2 13 16 1 Drop 49 | . 17 27 5 Fire 144 | 3 54 81 6 Melee 71 | . . 71 . Ram 1 | . . . 1 Kick . | . . . . Crush 1 | . 1 . . Escape Stasis . | . . . . Rewire . | . . . . Trap . | . . . . Miscellaneous . | . . . . Route ------- -11/Scrapyard -10/Materials (discovered 6 exits: *Mat x3 / *Min x2 / [*Sub]) -10/Subcaves (discovered 3 exits: *Mat x2 / [*Rec]) -7/Recycling (discovered 2 exits: Fac / Scr) History --------- Turn | Location | Event 13 | -11/Scrapyard | Discovered new exit (range 3) 45 | -11/Scrapyard | Entered Materials 311 | -10/Materials | Build established: Mutant 316 | -10/Materials | Discovered new exit (range 9) 811 | -10/Materials | Central database locked down 1021 | -10/Materials | Discovered new exit (range 3) 1391 | -10/Materials | Discovered new exit (range 8) 1505 | -10/Materials | Discovered new exit (range 15) 1692 | -10/Materials | Loaded intel: 19 trap records 1725 | -10/Materials | Learned Storage emergency access door positions 1749 | -10/Materials | Identified exit to Materials 1764 | -10/Materials | Learned 4 Recycling zone layouts 1770 | -10/Materials | Learned location of 2 exits from Mines 1785 | -10/Materials | Identified exit to Mines 1805 | -10/Materials | Discovered new exit (range 8) 1809 | -10/Materials | Learned Storage trap positions 1883 | -10/Materials | Entered Subcaves 1884 | -10/Subcaves | Approached by a straggling Scientist 1884 | -10/Subcaves | Identified exit to Materials 1987 | -10/Subcaves | Discovered exit to Materials (range 6) 2093 | -10/Subcaves | Ambushed by swarm of Subdwellers 2266 | -10/Subcaves | Learned location of Zion (-6) 2266 | -10/Subcaves | Met a Zionite searching for "candidates" 2593 | -10/Subcaves | Ambushed by Subdweller buried in earth 2941 | -10/Subcaves | Build established: Scavenger-Mutant 3633 | -10/Subcaves | Shifting Twisted Machinery released Shrapnel Trap 3659 | -10/Subcaves | Shifting Twisted Machinery released Flamer 4563 | -10/Subcaves | Disturbed a concealed Subdweller 4867 | -10/Subcaves | Build established: Mutant 5022 | -10/Subcaves | Shifting Twisted Machinery released Mak. Light Armor Plating 5089 | -10/Subcaves | Shifting Twisted Machinery released Unknown Ballistic Cannon 5155 | -10/Subcaves | Core integrity fell below 50% 6253 | -10/Subcaves | Ambushed by Subdwellers from Twisted Machinery 6308 | -10/Subcaves | Lost 3 parts (2n1w) 6326 | -10/Subcaves | Shifting Twisted Machinery released Mak. Hacking Suite 6436 | -10/Subcaves | Core integrity fell below 20% 6471 | -10/Subcaves | Discovered new exit (range 8) 6485 | -10/Subcaves | Entered Recycling 6486 | -7/Recycling | Identified exit to Factory 6486 | -7/Recycling | Identified exit to Scraptown 6600 | -7/Recycling | Destroyed by Y-54 Guardian with Gatling Laser Last Messages --------------- repair. 06471_ EXIT=FOUND 06475_ Machine disabled. LOCATION=UNKNOWN GOAL=ESCAPE Loading 4 Recycling zones... 06499_ Dropped Lrg. Storage Unit. 06499_ Dropped Mak. Light Armor Plating. 06501_ Dropped Lgt. Treads. 06502_ Acquired Sub. Monowheel. 06506_ Acquired Sub. Optics. 06509_ Acquired Sub. Power Source. 06513_ Dropped Ion Engine. 06516_ Dropped Sub. Laser. 06516_ Acquired Sub. Laser. 06518_ R-06 Scavenger collects Sub. Laser. 06519_ Slammed into R-06 Scavenger. 06526_ Sub. Monowheel shoots sparks and powers down. 06586_ Y-54 Guardian springs to life. Map ----- +----------------------------------------------------+ | ??????????????????????????????????? | | ??????????????????????????????????? | | ??????????????????????????????????? | | ??????????????????????????????????? | | ??????????????????????????????????? | | ??????????????????????????????????? | | ??????????????????????????????????? | | ??????????????????????????????????? | | ??????????????????????????????????? | | ??????????????????????????????????? | | ?????????? ???????????????????????? | | ?????????# ###????????????????????? | | ?????????# ????????????????????? | | ?????????+ ????????????????????? | | ?????????# ????????????????????? | | ?????????# #????????????????????? | | ?????????# #????????????????????? | | ?????????# #????????????????????? | | ?????????# ????????????????????? | | ?????????# Y##########???????????? | | ?????????# # #???????????? | | ?????????# # """ #???????????? | | ?????????# # Y" #???????????? | | ???????### # """ #???????????? | | ???????#"" # #???????????? | | ???????#"Y@ # """ #???????????? | | ???????#"" + """ #???????????? | | ???????### # """ #???????????? | | ?????????# # #???????????? | | ?????????# ##########??#####"T"## | | ?????????# #???????????# | | ?????????# #???????????# | | ?????????# #???????????# | | ??? ????# #???????????# | | ??" ""??# #???????????# | | ??" """ # #???????????# """ """ | | ??# "" + +???????????# """ """ | | ??# """ # # ??????????# """ """ | | ??# ""??# # ??????????########## | | ??? ????# #? ??????????????????? | | ?????????# #? ?????????????????? | | ?????????# #??#?????????????????? | | ?????????# #????????????????????? | | ?????????# #???????????###??????? | | ?????????# #??????????? #??????? | | ?????????# #??????????? ##?????? | | ?????????# +??????????? #?????? | | ?????????# #??????????? ##?????? | | ??????#### #???????????###??????? | | ??##### ## #????????????????????? | +----------------------------------------------------+ Best States ------------- Heat Dissipation 25 Energy Generation 15 Energy Capacity 250 Matter Stores 300 Matter Capacity 300 Sight Range 16 Terrain Scan Density 10 Armor Coverage 800 Core Shielding 20 Evasion (%) 40 Recoil Reduction 2 Item Schematics ----------------- None Robot Schematics ------------------ None Fabricated ------------ Nothing Repaired ---------- Nothing Studied --------- None Alien Tech Used ----------------- None Achievements -------------- None Challenges ------------ None Game ------ Seed PhasingHardenedDrivehammer Manual? 0 Play Time 00:48:53 Cumulative 95.5 hours Start 2026.08.06 @ 21:10:28 End 2026.08.06 @ 21:59:19 Sessions 1 Manual Loads 0 Difficulty Rogue Special Mode None Game No. 76 Rogue 76 Adventurer 0 Explorer 0 Win Type - Total 1 Types 1/0/0/0/0/0/0/0/0/0 Lore% 34 Gallery% 37 Achievement% 29 Wizard Run 0 Options --------- Layout 1 ASCII 0 Keyboard 0 Movement Mouse Keybinds 0 Fullscreen 2 Font 24/Smallcaps Map View 50x35 Zoom Use 0% Tactical HUD 1 Map Filters NONE Filters NONE Steam 1 RUN: 0b240abe-d7c7-4843-9812-15194eae1e44